bitfinex/quotes_ETHUSD_20260226
["timestamp","ask_amount","ask_price","bid_price","bid_amount"]
[1772066927052,1.10438946,2064.5,2063.8,6.41065622]
[1772066927362,2.31633807,2064.5,2063.8,6.41065622]
[1772066927737,0.001,2064.5,2064.2,2.56233616]
[1772066927949,0.001,2064.5,2064.0,3.61529854]
[1772066928343,0.001,2064.5,2063.4,2.56233616]
[1772066928344,1.10438946,2064.4,2063.4,2.56233616]
[1772066928581,1.10438946,2064.4,2063.3,3.85058912]
[1772066928871,1.10438946,2064.4,2063.4,2.56233616]
[1772066929439,1.10438946,2064.2,2063.5,1.2115338]
[1772066931775,2.31545374,2064.4,2063.6,3.61529854]
[1772066932843,1.21106428,2064.4,2063.5,1.2115338]
[1772066933172,1.21106428,2064.4,2063.2,4.84726283]
[1772066933173,1.10438946,2064.2,2063.2,0.0011]
[1772066933365,2.56233616,2064.3,2063.2,1.21280296]
[1772066933366,1.10438946,2064.0,2063.2,1.21280296]
[1772066933672,1.10438946,2063.8,2063.2,0.0011]
[1772066938094,1.09909511,2063.6,2063.2,0.0011]
[1772066940487,2.31058429,2063.6,2063.4,0.0011]
[1772066940890,1.09909511,2063.6,2063.4,0.0011]
[1772066941694,2.3104992,2063.8,2063.4,0.0011]
[1772066941891,2.78823253,2064.1,2063.4,1.04955379]
[1772066942395,1.09909511,2063.8,2063.4,0.0011]
[1772066943502,1.09909511,2063.8,2063.2,0.0011]
[1772066944000,1.09909511,2063.8,2063.2,3.61188995]
[1772066944911,2.31046966,2063.8,2063.3,1.21165123]
[1772066946382,2.31046966,2063.8,2063.2,4.08965873]
[1772066946683,2.31046966,2063.8,2063.2,2.26122943]
[1772066946881,2.31046966,2063.8,2063.2,1.04955379]
[1772066950412,1.09909511,2063.8,2063.3,1.04845379]
[1772066950616,2.31045961,2063.8,2063.3,1.04845379]
[1772066952287,2.31045961,2063.8,2063.2,1.8295293]
[1772066952617,1.09909511,2063.7,2063.2,0.0011]
[1772066954995,2.31056971,2063.7,2063.4,0.0011]
[1772066955620,0.001,2063.6,2063.4,0.0011]
[1772066956902,0.001,2063.6,2063.4,1.04955379]
[1772066957106,3.88731501,2064.1,2063.5,1.04845379]
[1772066957295,15.20405216,2064.4,2063.8,1.8284293]
[1772066957296,1.09909511,2064.3,2063.8,1.8284293]
[1772066957494,1.09909511,2064.3,2063.7,1.04845379]
[1772066957495,2.31018859,2064.3,2063.7,1.04845379]
[1772066957691,2.31015978,2064.3,2063.7,1.04845379]
[1772066958123,2.31015978,2064.3,2063.8,1.8284293]
[1772066958329,2.31015978,2064.3,2063.8,2.87688309]
[1772066959235,2.30996386,2064.7,2064.1,1.04845379]
[1772066959442,1.3731534,2064.8,2064.2,2.87688309]
[1772066959656,1.09909511,2065.6,2064.5,1.04845379]
[1772066959810,1.09909511,2065.4,2064.8,1.8284293]
[1772066960513,1.09909511,2065.4,2064.7,1.04845379]
[1772066960713,1.09909511,2065.4,2064.6,3.4114293]
[1772066961310,2.309573,2065.3,2064.8,1.8284293]
[1772066961540,1.09909511,2065.3,2064.8,1.8284293]
[1772066962245,1.09909511,2065.3,2064.6,1.583]
[1772066963224,1.2105365,2065.2,2064.6,2.63145379]
[1772066963435,1.2105365,2065.2,2064.7,1.04845379]
[1772066965443,1.2105365,2065.2,2064.6,4.62231594]
[1772066965444,2.30963161,2065.2,2064.6,4.62231594]
[1772066966353,1.09418733,2065.1,2064.6,1.583]
[1772066966531,1.09418733,2065.1,2064.2,1.583]
[1772066967439,1.09418733,2064.9,2064.2,1.583]
[1772066967640,1.09418733,2064.9,2064.2,2.6240521]
[1772066968050,1.09418733,2064.9,2063.9,1.0410521]
[1772066968227,1.09418733,2064.7,2063.9,1.0410521]
[1772066968839,1.09418733,2064.7,2063.9,2.25234807]
[1772066969451,2.30507563,2064.6,2064.0,1.8284293]
[1772066970342,2.30507563,2064.6,2063.9,3.96627245]
[1772066970549,2.30607563,2064.6,2063.9,3.96627245]
[1772066970848,0.001,2064.6,2064.3,1.71282438]
[1772066971045,0.001,2064.6,2064.3,1.0410521]
[1772066971426,0.001,2064.6,2064.3,2.25210576]
[1772066971932,0.001,2064.6,2064.2,1.21108763]
[1772066973171,0.001,2064.6,2064.3,1.12169331]
[1772066973545,0.001,2064.6,2064.3,2.83451769]
[1772066973732,0.001,2064.6,2064.3,4.04553811]
[1772066974446,0.001,2064.6,2064.3,2.33271373]
[1772066974761,1.11983223,2064.5,2063.9,0.0011]
[1772066974967,1.11983223,2064.0,2063.6,0.0011]
[1772066975271,1.11983223,2064.5,2063.6,0.0022]
[1772066975434,1.11983223,2064.5,2063.7,1.12169331]
[1772066975835,1.21100561,2064.4,2063.7,1.12169331]
[1772066976167,2.33083784,2064.4,2063.7,1.12169331]
[1772066978781,2.33084318,2064.4,2063.8,1.12279331]
[1772066979288,2.33084318,2064.4,2063.8,0.0011]
[1772066979289,1.11983223,2064.3,2063.8,0.0011]
[1772066980067,1.21112295,2064.2,2063.6,2.47179331]
[1772066980241,1.21112295,2064.2,2063.7,0.0011]
[1772066980659,1.21112295,2064.2,2063.8,0.0011]
[1772066980857,2.33095518,2064.2,2063.7,0.0011]
[1772066981291,1.21112295,2064.2,2063.7,1.12279331]
[1772066982190,4.84449181,2064.3,2063.7,1.12279331]
[1772066982685,5.96432404,2064.3,2063.7,1.12279331]
[1772066982857,1.11983223,2064.2,2063.7,0.0011]
[1772066983351,1.11983223,2064.2,2063.9,0.0011]
[1772066983972,1.21106428,2064.3,2063.9,0.0011]
[1772066984284,1.21106428,2064.3,2063.9,0.0022]
[1772066985058,2.33089651,2064.3,2063.9,0.0022]
[1772066986092,1.21106428,2064.3,2063.9,0.0022]
[1772066986984,5.96490565,2064.4,2063.9,0.0022]
[1772066989087,1.21112295,2064.2,2063.9,0.0022]
[1772066989288,1.11983223,2064.1,2063.9,0.0022]
[1772066990094,1.21112295,2064.2,2063.9,0.0022]
[1772066990392,2.33095518,2064.2,2063.9,0.0022]
[1772066990591,1.11983223,2064.1,2063.6,0.0011]
[1772066991180,1.11983223,2063.9,2063.6,0.0011]
[1772066993901,1.21135768,2063.8,2063.6,0.0011]
[1772066994401,2.33118991,2063.8,2063.6,0.0011]
[1772066994605,1.21134644,2063.9,2063.6,0.0011]
[1772066995414,2.33117867,2063.9,2063.6,0.0011]
[1772066996835,2.33117867,2063.9,2063.8,0.0011]
[1772066997934,1.04431354,2063.8,2063.6,0.0011]
[1772066998234,1.04431354,2063.7,2063.2,0.0011]
[1772066999042,1.04431354,2063.3,2063.2,0.0011]
[1772066999259,1.04431354,2063.3,2063.0,0.0011]
[1772066999462,1.04431354,2063.5,2063.0,1.07141677]
[1772066999648,1.04431354,2063.5,2063.0,0.0011]
[1772066999846,1.04431354,2063.3,2063.0,0.0011]
[1772067000836,1.04431354,2063.5,2063.0,0.0011]
[1772067001045,2.25589282,2063.5,2063.0,0.0011]
[1772067001561,2.25589282,2063.5,2063.0,1.07141677]
[1772067002761,0.34280389,2063.2,2063.0,0.0011]
[1772067003004,1.04431354,2063.0,2062.9,0.0011]
[1772067003266,1.38711743,2062.8,2062.2,1.07031677]
[1772067003563,1.21176869,2063.1,2062.1,1.5741]
[1772067003564,1.04431354,2062.7,2062.1,0.0011]
[1772067003773,3.08523501,2063.0,2062.1,0.0011]
[1772067003774,1.04431354,2062.5,2062.1,0.0011]
[1772067003964,1.04431354,2062.3,2062.1,0.0011]
[1772067004167,1.04431354,2062.1,2061.4,1.07141677]
[1772067004470,1.04431354,2062.0,2061.5,1.56549862]
[1772067005238,1.04431354,2062.0,2061.5,1.22269473]
[1772067005442,2.25673187,2062.0,2061.5,0.01]
[1772067005745,1.72283804,2063.2,2061.5,2.29301986]
[1772067005746,2.2566557,2062.2,2061.5,2.29301986]
[1772067006263,1.04431354,2062.1,2061.5,0.01]
[1772067007070,1.04431354,2062.3,2061.6,1.07031677]
[1772067007269,2.25646365,2062.5,2061.8,1.07031677]
[1772067008375,1.04431354,2062.4,2061.6,2.28296154]
[1772067009080,6.44636968,2062.6,2061.6,2.28296154]
[1772067009081,3.85441497,2062.6,2061.7,1.07031677]
[1772067009381,1.04431354,2062.6,2061.9,1.07031677]
[1772067009677,1.598,2062.7,2062.0,1.07031677]
[1772067010176,1.04431354,2063.3,2062.2,1.07031677]
[1772067010379,6.44459806,2063.4,2062.2,1.07031677]
[1772067010380,0.001,2062.8,2062.2,1.07031677]
[1772067011385,0.001,2062.8,2062.4,1.07031677]
[1772067011687,1.21173309,2063.2,2062.4,1.07031677]
[1772067011872,1.04431354,2063.1,2062.4,1.572]
[1772067012055,1.04431354,2063.1,2062.2,4.84895505]
[1772067012056,1.04431354,2063.1,2062.1,2.28264206]
[1772067012252,1.04431354,2062.9,2062.0,1.572]
[1772067012478,1.04431354,2062.9,2062.0,2.78440244]
[1772067012861,1.04431354,2062.9,2062.0,3.85471921]
[1772067013182,1.04431354,2062.7,2061.7,1.5721]
[1772067013470,1.04431354,2062.5,2061.7,1.5721]
[1772067013887,1.04431354,2062.5,2061.7,2.78468494]
[1772067014330,1.04431354,2062.5,2061.8,1.07031677]
[1772067015589,2.25649352,2062.4,2061.8,1.07031677]
[1772067015804,1.04431354,2062.3,2061.7,2.7846444]
[1772067016707,1.04431354,2062.3,2061.7,1.5721]
[1772067017577,1.21229754,2062.2,2061.7,1.5721]
[1772067018022,2.25661108,2062.2,2061.7,1.5721]
[1772067018998,1.04431354,2062.1,2061.7,1.5721]
[1772067019806,1.21229754,2062.2,2061.7,0.0011]
[1772067020607,2.25659418,2062.3,2061.7,0.0011]
[1772067020905,2.25659418,2062.3,2061.7,1.07141677]
[1772067021110,1.04431354,2062.3,2061.7,1.07141677]
[1772067021909,1.04431354,2062.3,2061.8,1.21253273]
[1772067022286,1.04431354,2062.3,2061.9,0.0011]
[1772067022694,1.04431354,2062.5,2061.9,1.07141677]
[1772067024598,0.001,2062.6,2062.1,1.07031677]
[1772067025495,0.001,2062.6,2062.3,1.07031677]
[1772067025809,0.001,2062.6,2062.3,2.64131677]
[1772067026014,2.25922696,2063.1,2062.4,1.05229584]
[1772067026184,2.25920045,2063.1,2062.4,1.05229584]
[1772067026379,1.04743164,2063.1,2062.4,1.05229584]
[1772067026602,1.04743164,2063.3,2062.6,1.05229584]
[1772067028911,1.21170996,2063.2,2062.6,2.26435631]
[1772067029092,2.2591416,2063.2,2062.6,1.05229584]
[1772067029292,2.2591416,2063.2,2062.6,2.26435327]
[1772067029993,1.04743164,2063.1,2062.4,1.21217321]
[1772067030891,2.25925907,2063.0,2062.4,1.21217321]
[1772067031502,1.04743164,2062.9,2062.3,1.571]
[1772067032218,1.04743164,2062.9,2062.3,2.78323371]
[1772067033309,2.30515895,2062.8,2062.3,1.571]
[1772067033615,2.30515895,2062.8,2062.3,2.78323367]
[1772067034600,0.001,2062.7,2062.3,2.78323367]
[1772067035721,1.09321403,2063.3,2062.6,1.13903393]
[1772067036798,1.09321403,2063.3,2062.5,2.40411738]
[1772067039125,1.21170996,2063.2,2062.4,2.3511621]
[1772067039338,1.09321403,2063.1,2062.4,1.13903393]
[1772067039503,1.09321403,2063.1,2062.4,2.35120891]
[1772067041336,1.09321403,2062.9,2062.4,2.35120891]
[1772067042039,1.09321403,2062.9,2062.1,1.13903393]
[1772067042410,1.09321403,2063.3,2062.4,1.13903393]
[1772067042610,1.09321403,2063.3,2062.5,1.13903393]
[1772067044530,1.09321403,2063.1,2062.5,2.35112568]
[1772067044807,1.09321403,2063.1,2062.4,1.573]
[1772067045222,1.589,2063.1,2062.4,1.573]
[1772067045422,1.09321403,2063.0,2062.4,1.573]
[1772067046021,1.09321403,2063.0,2062.5,0.0011]
[1772067046644,1.09321403,2062.8,2062.3,0.0011]
[1772067048713,1.09321403,2062.6,2062.3,0.0011]
[1772067053047,0.001,2063.1,2062.5,1.13903393]
[1772067054037,1.21277269,2063.1,2062.5,1.13903393]
[1772067054624,1.21277269,2063.1,2062.3,0.0011]
[1772067054625,1.09321403,2063.0,2062.3,0.0011]
[1772067055051,1.21184497,2063.0,2062.4,1.13903393]
[1772067055253,2.305059,2063.0,2062.4,1.13903393]
[1772067056759,1.13813166,2062.9,2062.4,1.13903393]
[1772067056957,1.13813166,2062.9,2062.3,0.0011]
[1772067057126,1.13813166,2062.9,2062.3,1.10347179]
[1772067057330,2.34995909,2063.0,2062.3,1.10347179]
[1772067057941,1.21182743,2063.0,2062.3,1.10347179]
[1772067058448,1.21182743,2063.0,2062.5,1.10347179]
[1772067058643,0.001,2062.8,2062.5,1.10347179]
[1772067059235,0.001,2062.8,2062.5,0.0011]
[1772067060265,1.13913166,2062.8,2062.5,0.0011]
[1772067061343,1.21200368,2062.7,2062.5,0.0011]
[1772067064843,2.35111791,2062.8,2062.5,0.0011]
[1772067065380,0.001,2063.1,2062.6,1.10237179]
[1772067066238,1.13913166,2063.1,2062.6,1.10237179]
[1772067066945,1.13913166,2063.1,2062.5,0.0011]
[1772067067148,1.13813166,2063.0,2062.5,0.0011]
[1772067067337,1.21188617,2062.9,2062.5,0.0011]
[1772067067535,2.35001783,2062.9,2062.5,0.0011]
[1772067070070,2.35001783,2062.9,2062.7,0.0011]
[1772067070367,2.35101783,2062.9,2062.7,0.0011]
[1772067071772,1.13813166,2062.8,2062.7,0.0011]
[1772067072751,2.35007658,2062.8,2062.7,0.0011]
[1772067075270,2.35007658,2062.8,2062.0,0.0011]
[1772067075271,1.13813166,2062.7,2062.0,0.0011]
[1772067075459,2.81294492,2062.8,2062.0,0.0011]
[1772067075460,1.13813166,2062.3,2062.0,0.0011]
[1772067075775,1.13813166,2062.1,2062.0,0.0011]
[1772067076076,1.13813166,2062.0,2061.5,1e-08]
[1772067076276,1.601,2062.1,2060.9,1.10347179]
[1772067076277,1.13813166,2061.7,2060.9,0.0011]
[1772067076578,1.13813166,2061.4,2060.1,4.4894962]
[1772067076755,1.71597626,2061.5,2060.3,1.71597626]
[1772067076756,1.13813166,2061.2,2060.3,1.71597626]
[1772067077071,1.13813166,2061.1,2060.3,1.71597626]
[1772067077279,1.21300339,2061.0,2060.3,2.92936926]
[1772067077576,1.13813166,2060.9,2060.3,1.213393]
[1772067077977,1.13813166,2060.9,2060.2,2.31690442]
[1772067078276,1.13813166,2061.4,2060.5,1.10237179]
[1772067078484,1.13813166,2061.3,2060.3,1.10237179]
[1772067079065,1.13813166,2061.3,2060.2,1.21453263]
[1772067079066,1.13813166,2061.1,2060.2,0.0011]
[1772067079369,1.13813166,2060.9,2060.2,0.0011]
[1772067081248,1.13813166,2060.7,2060.2,0.0011]
[1772067081751,1.13813166,2060.5,2060.2,0.0011]
[1772067081952,1.13813166,2060.5,2060.0,0.0011]
[1772067082766,1.13813166,2060.5,2059.7,0.0011]
[1772067082956,1.13813166,2060.5,2058.9,1.21424061]
[1772067082957,1.13813166,2059.8,2058.9,1.21424061]
[1772067083166,2.35154602,2060.4,2059.5,1.21388686]
[1772067083550,4.91391171,2060.7,2059.8,1.71597626]
[1772067083769,6.51391171,2060.7,2059.8,1.71597626]
[1772067083970,1.13813166,2060.6,2059.5,2.92986312]
[1772067084176,2.81321954,2060.7,2059.5,4.48686312]
[1772067084370,2.81321954,2060.7,2059.8,1.71597626]
[1772067084679,2.81321954,2060.7,2059.8,2.81834805]
[1772067084978,2.81321954,2060.7,2059.9,1.10237179]
[1772067085505,3.9513512,2060.7,2059.8,1.21367072]
[1772067087060,3.9513512,2060.7,2059.5,7.51469158]
[1772067087061,1.05884739,2060.5,2059.5,2.77088621]
[1772067087482,2.27220401,2060.4,2059.5,2.77088621]
[1772067087656,2.65884739,2060.7,2059.8,1.71597626]
[1772067087959,2.27187497,2061.0,2060.1,1.14738132]
[1772067088301,2.27187497,2061.0,2060.2,1.71597626]
[1772067088457,2.27185802,2061.0,2060.2,1.71597626]
[1772067088658,1.199,2061.1,2060.2,2.86335758]
[1772067088659,2.41199102,2061.1,2060.2,2.86335758]
[1772067088856,2.41199102,2061.1,2060.3,1.14738132]
[1772067089281,2.27171978,2061.3,2060.5,1.12774222]
[1772067089484,2.27171978,2061.3,2060.6,1.21323886]
[1772067089757,2.27171978,2061.3,2060.5,2.34099596]
[1772067090681,2.81174061,2061.5,2060.7,1.14738132]
[1772067091197,2.27153985,2061.6,2060.8,2.86335758]
[1772067091375,2.27153985,2061.6,2060.5,4.64520626]
[1772067091376,1.05884739,2061.5,2060.5,4.07661132]
[1772067091564,2.37449337,2061.4,2060.5,4.07661132]
[1772067091766,2.37449337,2061.4,2060.6,13.091]
[1772067091960,1.598,2061.9,2060.6,13.091]
[1772067091961,1.16172535,2062.2,2060.6,1.12800635]
[1772067092163,1.16172535,2062.2,2060.5,2.92923]
[1772067092164,1.16172535,2062.0,2060.7,4.39898261]
[1772067092493,1.16172535,2061.8,2060.7,2.68300635]
[1772067092694,1.16172535,2061.7,2060.7,2.68300635]
[1772067093468,1.16172535,2061.7,2060.9,1.71597626]
[1772067094192,0.001,2061.5,2061.1,2.84398261]
[1772067095786,0.001,2061.5,2060.8,2.34108416]
[1772067096772,0.001,2061.5,2060.9,1.71597626]
[1772067096972,0.001,2061.5,2061.1,2.84398261]
[1772067097183,1.16172535,2061.7,2060.8,2.34108416]
[1772067097697,1.21253641,2061.8,2061.1,1.71597626]
[1772067098073,4.85004,2061.9,2061.1,2.92890113]
[1772067098286,6.01176535,2061.9,2061.1,2.92890113]
[1772067098479,6.01176535,2061.9,2061.1,1.21292487]
[1772067099180,2.37419928,2061.9,2061.3,1.71597626]
[1772067099898,1.21247393,2061.9,2061.3,1.71597626]
[1772067100627,1.16172535,2062.0,2061.2,1.555]
[1772067100998,1.16172535,2062.0,2061.0,1.12800635]
[1772067101215,1.16172535,2062.0,2060.8,3.89510456]
[1772067101411,1.16172535,2062.0,2061.1,1.71597626]
[1772067101786,1.16172535,2062.0,2061.0,1.12800635]
[1772067103515,1.16172535,2062.0,2060.7,0.0011]
[1772067103516,1.16172535,2061.8,2060.7,0.0011]
[1772067103680,1.16172535,2061.8,2060.7,1.21427456]
[1772067104108,1.16172535,2061.6,2060.7,1.21427456]
[1772067104820,2.37419928,2061.9,2061.3,1.71597626]
[1772067105026,1.16172535,2061.8,2061.0,1.552]
[1772067106128,1.16172535,2061.6,2060.8,5.00310419]
[1772067106307,1.16172535,2061.6,2060.8,1.21310419]
[1772067106819,0.001,2061.5,2060.9,1.71597626]
[1772067106984,0.001,2061.5,2060.9,2.84398261]
[1772067107186,1.16272535,2061.5,2060.7,1.21425107]
[1772067107385,1.16272535,2061.5,2060.7,2.93022733]
[1772067107704,1.16272535,2061.5,2060.7,4.05823368]
[1772067107899,0.001,2061.5,2061.1,2.92888037]
[1772067108203,0.001,2061.5,2060.9,2.34103541]
[1772067108410,0.001,2061.5,2060.9,4.05701167]
[1772067108609,0.001,2061.5,2060.9,2.34103541]
[1772067108797,0.001,2061.5,2061.1,1.71597626]
[1772067109211,0.001,2061.5,2061.1,2.84398261]
[1772067110212,0.001,2061.5,2061.1,1.12800635]
[1772067110416,0.001,2061.5,2061.1,2.34094066]
[1772067110798,0.001,2061.5,2061.1,1.12800635]
[1772067111214,0.001,2061.5,2061.1,2.34094687]
[1772067111925,0.001,2061.5,2061.2,1.12800635]
[1772067112133,6.01140844,2062.0,2061.2,1.12800635]
[1772067112134,1.21247393,2061.9,2061.3,1.71597626]
[1772067112292,1.21247393,2061.9,2061.3,2.92877654]
[1772067113219,1.21247393,2061.9,2061.3,2.34080663]
[1772067113804,1.21247393,2061.9,2061.2,4.85151249]
[1772067113805,2.37419928,2061.9,2061.2,1.21283812]
[1772067114020,1.16172535,2061.8,2061.1,1.554]
[1772067114808,1.16172535,2061.6,2061.1,1.554]
[1772067115526,1.16172535,2061.6,2061.1,2.76693678]
[1772067117225,2.3744058,2061.6,2061.1,2.76693678]
[1772067118604,2.3744058,2061.6,2061.1,2.76803466]
[1772067118927,0.001,2061.4,2061.1,2.76803466]
[1772067120340,1.15297358,2062.0,2061.3,1.71597626]
[1772067122045,1.15297358,2062.2,2061.5,1.71597626]
[1772067122338,1.15297358,2062.2,2061.5,3.27597626]
[1772067122503,1.15297358,2062.2,2061.5,1.56]
[1772067122899,1.15297358,2062.2,2061.2,1.21287893]
[1772067124931,1.15297358,2062.0,2061.2,1.21287893]
[1772067125242,2.36521628,2062.3,2061.2,1.21287893]
[1772067125534,2.3661055,2062.5,2061.9,1.71597626]
[1772067125692,0.001,2062.5,2062.1,1.71597626]
[1772067126740,2.36587185,2062.9,2062.3,1.71597626]
[1772067126956,2.36587185,2062.9,2062.3,1.21223876]
[1772067128656,1.15297358,2062.8,2061.9,1.559]
[1772067129230,1.21200368,2062.7,2061.9,1.559]
[1772067129429,1.15297358,2062.6,2061.9,2.77146928]
[1772067129622,1.15297358,2062.6,2061.9,1.559]
[1772067131447,1.15297358,2062.6,2061.4,2.403992]
[1772067131448,1.15297358,2062.4,2061.5,1.2126654]
[1772067131653,1.15297358,2062.4,2061.4,0.0011]
[1772067132733,1.15297358,2062.4,2061.4,1.26213073]
[1772067133191,1.15297358,2062.4,2061.4,0.0011]
[1772067133667,1.15297358,2062.2,2061.4,0.0011]
[1772067135687,1.15297358,2062.0,2061.4,0.0011]
[1772067136084,1.21235633,2062.1,2061.5,1.11056912]
[1772067137151,2.36532991,2062.1,2061.4,0.0011]
[1772067137470,1.15297358,2062.0,2061.4,0.0011]
[1772067139692,1.21247393,2061.9,2061.4,0.0011]
[1772067141590,2.36544751,2061.9,2061.4,0.0011]
[1772067142269,1.21229754,2062.2,2061.4,1.11166912]
[1772067142470,2.36527112,2062.2,2061.6,0.0011]
[1772067142872,1.15297358,2062.1,2061.6,0.0011]
[1772067143590,1.21241513,2062.0,2061.6,0.0011]
[1772067147305,2.36707715,2062.0,2061.6,0.0011]
[1772067148062,1.15466202,2061.9,2061.6,0.0011]
[1772067148873,1.15466202,2061.9,2061.4,0.0011]
[1772067149185,1.15466202,2061.8,2061.4,0.0011]
[1772067149689,1.15466202,2061.8,2061.1,0.0011]
[1772067150199,1.15466202,2061.6,2061.1,0.0011]
[1772067150864,1.15466202,2061.4,2061.1,0.0011]
[1772067151070,1.15466202,2061.4,2060.7,0.0011]
[1772067151323,1.15466202,2061.2,2060.6,0.0011]
[1772067151600,1.15466202,2061.0,2060.6,0.0011]
[1772067152173,1.15737249,2060.8,2060.6,0.0011]
[1772067154604,2.37055247,2060.7,2060.6,0.0011]
[1772067156884,1.15737249,2060.7,2060.6,0.0011]
[1772067158091,1.15737249,2060.6,2060.2,0.0011]
[1772067158427,1.15737249,2060.4,2060.2,0.0011]
[1772067160511,2.37074099,2060.4,2060.2,0.0011]
[1772067164592,15.51345261,2062.9,2060.2,0.0011]
[1772067164593,1.15737249,2061.3,2060.3,0.3077583]
[1772067164806,1.15737249,2061.1,2060.2,0.0011]
[1772067164987,1.15737249,2060.7,2060.2,0.0011]
[1772067165320,1.15737249,2060.3,2060.2,0.0011]
[1772067166613,3.98138773,2061.0,2060.3,0.93399237]
[1772067166818,2.76837249,2061.0,2060.3,0.09878628]
[1772067166998,1.15737249,2060.9,2060.3,0.09878628]
[1772067167514,1.15737249,2060.9,2060.4,1.21335662]
[1772067169901,1.611,2061.0,2060.4,1.21335662]
[1772067170096,1.15737249,2060.9,2060.2,0.0011]
[1772067171717,1.15737249,2060.9,2060.2,1.21457197]
[1772067171885,2.37048375,2060.9,2060.2,1.21457197]
[1772067172100,1.15737249,2060.8,2060.2,1.21457197]
[1772067172310,1.15737249,2060.8,2060.2,1.31715029]
[1772067173330,1.15737249,2060.8,2060.2,0.0011]
[1772067174810,1.15737249,2060.7,2060.2,0.0011]
[1772067177630,2.37055821,2060.7,2060.2,0.0011]
[1772067177833,2.37055821,2060.7,2060.2,0.09051081]
[1772067178029,1.15737249,2060.7,2060.2,0.09051081]
[1772067178340,2.37055703,2060.7,2060.4,0.0011]
[1772067178509,1.15837249,2060.7,2060.4,0.0011]
[1772067178832,2.37156894,2060.7,2060.4,0.0011]
[1772067179332,2.37156459,2060.7,2060.4,0.0011]
[1772067180335,1.15837249,2060.7,2060.4,0.0011]
[1772067180547,2.37157433,2060.7,2060.4,0.0011]
[1772067180707,1.15837249,2060.7,2060.4,0.0011]
[1772067180907,0.001,2060.7,2060.4,0.07606025]
[1772067182324,0.001,2060.7,2060.4,0.0011]
[1772067182325,1.15934863,2060.7,2060.4,0.0011]
[1772067182509,1.15834863,2060.5,2060.4,0.0011]
[1772067182703,1.15834863,2060.5,2060.1,0.0011]
[1772067182910,1.15834863,2060.5,2059.9,0.0011]
[1772067183214,1.15834863,2060.4,2059.9,0.0011]
[1772067184120,1.21341552,2060.3,2059.9,0.0011]
[1772067184431,1.15834863,2060.1,2059.9,0.0011]
[1772067185643,4.85319218,2060.5,2059.9,0.0011]
[1772067185644,0.001,2060.7,2060.0,0.05306874]
[1772067185828,1.15934863,2060.7,2060.0,0.05306874]
[1772067186211,0.001,2060.7,2060.2,0.04863091]
[1772067188333,0.001,2060.7,2060.3,1.21341552]
[1772067190768,0.001,2060.7,2060.3,1.2447824]
[1772067190937,0.001,2061.0,2060.6,0.03036688]
[1772067192754,0.001,2061.0,2060.7,1.23521329]
[1772067193643,1.15934863,2061.0,2060.3,4.85345542]
[1772067195441,1.15934863,2061.0,2060.3,1.21341552]
[1772067195442,1.15834863,2060.9,2060.3,1.21341552]
[1772067195945,1.15834863,2060.9,2060.1,1.21463161]
[1772067197519,1.15834863,2060.8,2060.1,0.0011]
[1772067199517,2.371516,2060.8,2060.1,0.0011]
[1772067200048,1.15834863,2060.7,2060.1,0.0011]
[1772067202253,1.15834863,2060.5,2060.1,0.0011]
[1772067203427,1.15834863,2060.2,2059.9,0.0011]
[1772067203734,1.15834863,2060.0,2059.9,0.0011]
[1772067203943,1.15834863,2060.0,2059.6,0.0011]
[1772067204351,1.15834863,2059.8,2059.6,0.0011]
[1772067206425,1.15834863,2059.8,2058.9,1.21424061]
[1772067206426,1.10950861,2059.6,2058.9,1.21424061]
[1772067206726,1.10950861,2059.5,2058.7,4.85733604]
[1772067206948,1.10950861,2059.5,2058.6,1.21441756]
[1772067207144,1.10950861,2059.4,2058.3,3.80020075]
[1772067207346,1.10950861,2059.4,2058.4,1.71842301]
[1772067207650,1.10950861,2059.4,2058.6,1.71842301]
[1772067208223,1.10950861,2059.4,2058.4,1.71842301]
[1772067208519,1.10950861,2059.2,2058.4,2.93291106]
[1772067212561,2.32357444,2059.2,2058.4,2.93291106]
[1772067213342,1.10950861,2059.1,2058.4,1.21448805]
[1772067213549,1.10950861,2059.1,2058.1,1.21471259]
[1772067214265,1.10950861,2059.2,2058.7,1.71842301]
[1772067214472,1.10950861,2059.2,2058.6,0.0011]
[1772067214956,1.10950861,2059.1,2058.6,1.21551756]
[1772067215353,1.10950861,2059.3,2058.6,1.21551756]
[1772067216971,2.32355967,2059.3,2058.6,0.0011]
[1772067217179,1.10950861,2059.2,2058.6,0.0011]
[1772067219073,1.10950861,2059.2,2058.6,1.21551756]
[1772067219775,1.10950861,2059.1,2058.6,1.21551756]
[1772067219972,1.21407181,2059.2,2058.6,1.21551756]
[1772067219973,1.10950861,2059.4,2058.6,1.21551756]
[1772067220139,1.10950861,2059.3,2058.6,2.93394057]
[1772067221546,4.85484996,2059.8,2058.9,1.71842301]
[1772067221547,1.10950861,2059.7,2058.9,1.71842301]
[1772067221853,1.71842301,2060.2,2059.3,1.71842301]
[1772067221854,2.3230123,2060.2,2059.3,1.71842301]
[1772067222060,1.10950861,2060.1,2059.3,1.71842301]
[1772067222265,1.10950861,2060.1,2059.1,1.71842301]
[1772067222266,1.10950861,2060.1,2059.0,3.25842301]
[1772067222934,1.10950861,2060.1,2059.0,1.54]
[1772067223569,1.10950861,2059.9,2059.1,1.21412267]
[1772067223768,1.10950861,2059.8,2059.1,1.21412267]
[1772067224667,1.10950861,2059.8,2058.9,1.21424061]
[1772067225543,1.21376899,2059.7,2058.7,4.85696245]
[1772067225739,1.10950861,2059.6,2058.7,4.85696245]
[1772067226643,1.11050861,2059.6,2058.7,4.85696245]
[1772067227764,1.10950861,2059.4,2058.7,4.85696245]
[1772067228469,1.10950861,2059.4,2058.7,1.21435857]
[1772067229743,1.10950861,2059.3,2058.6,0.0011]
[1772067229948,1.10950861,2059.3,2058.6,1.71952301]
[1772067230640,1.10950861,2059.5,2059.0,1.71842301]
[1772067230851,0.001,2059.6,2059.0,1.71842301]
[1772067232268,0.001,2059.6,2059.1,1.21412267]
[1772067232853,1.11050861,2059.6,2059.1,1.21412267]
[1772067235286,1.11050861,2059.6,2059.2,1.71842301]
[1772067235589,1.11050861,2059.6,2059.0,1.21413291]
[1772067235590,1.10950861,2059.5,2059.0,1.21413291]
[1772067237458,1.10950861,2059.4,2058.9,4.85683124]
[1772067237659,1.10950861,2059.4,2058.9,1.21424061]
[1772067238257,1.10950861,2059.4,2058.9,1.21534061]
[1772067238464,1.11050861,2059.4,2059.0,1.71842301]
[1772067239172,0.001,2059.4,2059.0,1.71842301]
[1772067239492,0.001,2059.4,2058.9,1.21534061]
[1772067240377,0.001,2059.6,2059.2,1.71842301]
[1772067240686,4.85426299,2060.1,2059.4,1.71842301]